bitfinex/quotes_ETHUSD_20241203
["timestamp","ask_amount","ask_price","bid_price","bid_amount"]
[1733185466039,0.80661818,3636.9,3636.2,2.75009]
[1733185466239,0.55,3636.9,3636.2,2.75009]
[1733185466542,0.80661818,3636.9,3636.3,2.75002]
[1733185466773,0.55,3636.9,3636.3,2.75002]
[1733185466976,0.80661818,3636.9,3636.1,2.75016]
[1733185467194,0.55,3636.7,3636.1,2.75016]
[1733185467676,0.55,3636.7,3636.0,2.65657947]
[1733185467883,0.80665283,3636.7,3636.0,2.65657947]
[1733185468243,1.71019104,3636.7,3635.6,2.65657947]
[1733185468441,0.55,3636.5,3636.0,2.65657947]
[1733185468645,0.55,3636.5,3636.2,2.75011]
[1733185468874,0.80665283,3636.6,3636.2,2.75011]
[1733185469080,0.55,3636.6,3636.2,2.75011]
[1733185469383,0.55,3636.7,3636.3,2.75004]
[1733185469786,0.55,3636.7,3636.1,3.57443]
[1733185470091,0.25664535,3637.0,3636.4,2.74996]
[1733185470387,1.9764165,3637.2,3636.4,2.65657947]
[1733185470583,1.9764165,3637.2,3636.6,2.74978]
[1733185470584,0.25665528,3637.1,3636.6,2.74978]
[1733185470744,0.8238,3637.2,3636.6,2.74978]
[1733185470980,0.25665127,3637.1,3636.7,2.78057502]
[1733185471181,1.08045841,3637.2,3636.8,2.74964]
[1733185471532,1.1526165,3637.5,3636.8,3.47367947]
[1733185471533,0.7802,3637.5,3636.8,3.47367947]
[1733185471686,1.20671138,3637.4,3636.8,3.47367947]
[1733185471881,1.20671138,3637.3,3636.9,0.03074819]
[1733185472100,0.25664662,3637.2,3636.9,0.03074819]
[1733185472431,0.25664662,3637.4,3636.9,2.74953]
[1733185472599,0.25664662,3637.4,3636.7,2.74972]
[1733185472799,0.25664662,3637.4,3637.0,0.03066751]
[1733185473125,0.25664403,3637.3,3636.5,0.757]
[1733185473336,0.55,3637.3,3637.1,0.03066751]
[1733185473502,0.55,3637.3,3636.8,2.74962]
[1733185473913,0.80664403,3637.3,3636.9,0.03066751]
[1733185474125,0.55,3637.3,3636.9,0.03066751]
[1733185474426,0.55,3637.1,3636.6,2.74979]
[1733185474808,0.80664403,3637.2,3636.7,0.03065675]
[1733185475004,0.55,3637.2,3636.7,0.03065675]
[1733185476249,1.00754388,3637.2,3636.7,0.03065675]
[1733185476402,0.55,3637.0,3636.7,0.03065675]
[1733185476716,0.55,3637.0,3636.8,0.03065675]
[1733185477043,0.80658473,3637.0,3636.4,2.7499]
[1733185477348,0.55,3636.8,3636.4,2.7499]
[1733185478142,0.80658473,3636.8,3636.4,2.7499]
[1733185478818,0.55,3636.8,3636.4,2.7499]
[1733185479209,0.55,3636.9,3636.4,2.7499]
[1733185479514,0.55,3636.9,3636.3,2.74997]
[1733185479723,0.80658473,3636.9,3636.3,2.74997]
[1733185480318,0.55,3637.0,3636.3,2.74997]
[1733185480538,0.55,3636.8,3636.1,3.29834479]
[1733185480739,2.57817922,3636.9,3636.2,2.75011]
[1733185480956,1.50058007,3636.8,3636.2,2.75011]
[1733185481142,0.8065753,3636.8,3636.1,0.54822479]
[1733185481310,0.95070673,3636.7,3636.1,0.54822479]
[1733185481510,0.55,3636.6,3636.1,0.54822479]
[1733185481718,0.55,3636.7,3636.1,0.54822479]
[1733185482044,0.55,3636.7,3636.2,2.75006]
[1733185482257,0.55,3636.7,3636.1,0.54822479]
[1733185482473,0.8065753,3636.7,3636.3,2.75004]
[1733185482624,0.55,3636.7,3636.3,2.75004]
[1733185482824,0.8065753,3636.7,3636.3,2.75004]
[1733185483046,0.55,3636.7,3636.3,2.75004]
[1733185483221,0.8065753,3636.7,3636.3,2.75004]
[1733185483423,0.55,3636.8,3636.3,2.75004]
[1733185483616,0.55,3636.6,3636.3,2.75004]
[1733185483919,0.55,3636.8,3636.1,3.97392322]
[1733185484120,0.55,3636.6,3636.1,3.97392322]
[1733185484360,0.55,3636.6,3636.2,2.7501]
[1733185484559,0.55,3637.0,3636.2,2.7501]
[1733185485064,0.95057366,3636.9,3636.2,2.7501]
[1733185485228,0.95057672,3636.8,3636.2,2.7501]
[1733185485441,0.55,3636.6,3636.3,2.75002]
[1733185485620,0.55,3636.6,3636.1,3.97393322]
[1733185485820,1.14959777,3636.9,3636.1,3.97393322]
[1733185485821,0.55,3636.8,3636.1,3.97393322]
[1733185486024,0.55,3636.8,3636.2,0.0288543]
[1733185486259,0.55,3636.4,3636.2,0.0288543]
[1733185486563,1.50062123,3636.3,3636.2,0.0288543]
[1733185486721,1.50062123,3636.3,3635.6,0.55617456]
[1733185486722,0.55,3636.2,3635.6,0.55617456]
[1733185486917,0.55,3636.2,3635.7,0.0288543]
[1733185487120,1.38844363,3636.2,3635.6,0.55617456]
[1733185487318,1.38844363,3636.2,3635.7,0.02899419]
[1733185487529,0.55,3636.0,3635.6,0.55617456]
[1733185487728,0.55,3636.1,3635.7,0.02899419]
[1733185488060,0.55,3636.1,3635.4,2.75072]
[1733185488215,0.55,3636.1,3635.8,0.02949998]
[1733185488422,0.55,3636.1,3635.4,2.75072]
[1733185488652,0.55,3636.1,3635.9,0.02949998]
[1733185488844,0.55,3636.1,3635.4,2.75072]
[1733185489241,0.55,3636.1,3635.5,0.02958608]
[1733185489562,0.55,3636.2,3635.5,0.02958608]
[1733185489798,1.56051756,3636.4,3635.7,2.75048]
[1733185489999,1.50038798,3636.3,3635.9,2.75032]
[1733185490184,0.55,3636.4,3636.0,5.40684947]
[1733185490566,0.55,3636.4,3636.1,0.02957532]
[1733185492356,0.55,3636.4,3636.1,2.77976532]
[1733185492562,0.55,3636.4,3636.1,0.02957532]
[1733185494401,0.79839978,3636.4,3636.1,0.02957532]
[1733185494598,0.55,3636.4,3635.5,2.75061]
[1733185494891,1.50031721,3636.3,3636.2,0.02934392]
[1733185495078,0.55,3636.2,3635.5,2.75061]
[1733185495487,0.55,3636.0,3635.6,0.02944616]
[1733185495860,0.55,3636.0,3635.4,2.75072]
[1733185496498,0.55,3636.0,3635.5,0.0295215]
[1733185501087,1.50022633,3636.0,3635.5,0.0295215]
[1733185501286,0.55,3635.8,3635.5,0.0295215]
[1733185501611,0.55,3636.0,3635.5,0.0295215]
[1733185502079,0.55,3636.0,3635.5,2.7801715]
[1733185503378,0.55,3636.0,3635.8,2.75035]
[1733185503773,0.55,3636.0,3635.9,0.02877679]
[1733185504074,1.50004921,3636.0,3635.9,0.02877679]
[1733185504298,1.50004921,3636.0,3635.4,2.7507]
[1733185504501,0.55,3636.0,3635.4,2.7507]
[1733185504710,0.55,3636.0,3635.5,0.02877679]
[1733185505744,0.55,3636.1,3635.9,2.75035]
[1733185506037,1.14959777,3636.4,3635.9,2.75033]
[1733185506230,0.94995174,3636.4,3636.0,2.77896064]
[1733185506386,2.09956605,3636.4,3636.2,2.75012]
[1733185506586,3.40502538,3636.5,3636.0,3.1387467]
[1733185506830,3.52448901,3636.4,3636.0,3.10998606]
[1733185507015,0.55,3636.2,3636.1,0.02876064]
[1733185507219,1.49996363,3636.2,3636.1,0.02876064]
[1733185507540,2.6495614,3636.2,3636.1,0.02876064]
[1733185507831,2.9724022,3636.2,3634.9,2.65657947]
[1733185507993,1.14884344,3635.9,3634.9,2.65657947]
[1733185508194,1.49996363,3635.8,3635.0,0.57809034]
[1733185508575,0.55,3635.8,3635.1,2.77856195]
[1733185509730,0.8123,3635.5,3635.1,0.02765195]
[1733185510032,1.14884344,3635.3,3634.5,0.2746]
[1733185510192,0.55,3635.2,3634.5,3.02594]
[1733185510393,1.69884344,3635.3,3634.6,0.02678742]
[1733185510594,0.55,3635.1,3634.6,0.02678742]
[1733185510790,0.55,3634.9,3634.2,0.7804]
[1733185510994,0.74267,3634.8,3634.7,0.02678742]
[1733185511295,0.55,3634.5,3633.5,0.7804]
[1733185511603,0.55,3634.5,3633.6,0.02678742]
[1733185511824,0.55,3634.3,3633.6,0.02678742]
[1733185511990,0.55,3634.1,3633.6,0.02678742]
[1733185512196,0.55,3633.9,3633.0,0.7804]
[1733185512406,0.55,3633.9,3633.2,2.75232]
[1733185512731,0.55,3633.9,3633.0,0.7804]
[1733185512732,0.55,3633.9,3633.0,0.7562945]
[1733185512938,0.55,3633.9,3633.1,2.75246]
[1733185513106,0.55,3633.9,3633.1,2.77749135]
[1733185513306,0.55,3633.7,3633.1,0.02503135]
[1733185513611,0.756536,3633.7,3632.9,2.65657947]
[1733185513812,0.55,3633.7,3633.2,0.02503135]
[1733185514020,0.55,3633.7,3632.9,2.65657947]
[1733185514221,0.55,3633.7,3633.3,0.02503135]
[1733185514407,0.55,3633.7,3632.8,3.311407]
[1733185514408,0.55,3633.7,3632.9,2.7526]
[1733185514604,0.55,3633.7,3633.4,0.02616699]
[1733185514817,0.976716,3633.7,3632.9,2.7526]
[1733185515022,0.55,3633.7,3633.5,0.02616699]
[1733185515224,0.55,3633.7,3632.9,2.7526]
[1733185515469,0.55,3633.7,3633.6,0.02616699]
[1733185515620,0.55,3633.7,3632.9,2.7526]
[1733185515815,0.55,3633.7,3633.6,0.02616699]
[1733185516096,0.976716,3633.7,3632.7,2.75275]
[1733185516221,0.976716,3633.7,3633.6,0.02616699]
[1733185516419,0.976716,3633.7,3632.7,2.75275]
[1733185516629,0.976716,3633.7,3632.6,0.8228]
[1733185516850,0.55,3633.5,3632.8,0.02616699]
[1733185517156,0.18776,3634.0,3632.9,0.02616699]
[1733185517157,0.55,3633.3,3632.9,0.02616699]
[1733185517351,0.55,3633.3,3632.1,2.75321]
[1733185517352,3.30232,3633.3,3632.1,2.75321]
[1733185517562,0.55,3633.1,3632.1,2.75321]
[1733185518054,0.55,3633.1,3632.2,0.02771755]
[1733185518260,2.7528,3632.7,3632.2,0.02771755]
[1733185518551,0.55,3633.1,3631.3,2.65657947]
[1733185518552,0.55,3632.5,3631.3,2.65657947]
[1733185519064,0.55,3632.5,3631.4,0.02784149]
[1733185519422,0.55,3632.3,3631.4,0.02784149]
[1733185520152,0.55,3632.3,3631.1,3.52927]
[1733185520463,0.55,3632.3,3631.2,0.02838052]
[1733185520767,0.55,3632.1,3631.2,0.02838052]
[1733185520968,0.33028,3632.6,3631.2,0.02838052]
[1733185520969,0.55,3631.9,3631.2,0.02838052]
[1733185521123,0.55,3631.9,3630.9,0.56408701]
[1733185521328,0.55,3631.7,3631.0,0.02965229]
[1733185521826,0.55,3631.7,3631.0,2.78369229]
[1733185522033,0.55,3631.7,3631.1,2.75398]
[1733185522233,0.55,3631.7,3631.1,2.78357202]
[1733185522592,0.55,3631.7,3631.1,0.02959202]
[1733185522878,0.7908,3632.1,3631.3,2.75383]
[1733185523026,0.7908,3632.1,3631.8,2.75341]
[1733185523233,0.7908,3632.8,3632.0,2.75323]
[1733185523737,0.7908,3632.8,3632.1,2.78282899]
[1733185524560,0.55,3632.7,3632.1,2.78282899]
[1733185525742,0.55,3632.7,3632.2,2.75313]
[1733185526055,0.55,3632.7,3632.0,2.75329]
[1733185526369,0.55,3632.5,3631.7,2.75346]
[1733185526668,0.55,3632.5,3631.8,0.02922534]
[1733185527029,0.55,3632.5,3631.4,2.65657947]
[1733185527412,0.55,3632.5,3630.7,3.0]
[1733185527413,0.55,3632.2,3631.9,0.02922534]
[1733185527702,0.55,3632.2,3630.4,2.65657947]
[1733185527703,0.55,3631.7,3630.5,2.75442]
[1733185527858,0.55,3631.5,3630.5,2.75442]
[1733185528061,0.55,3631.3,3630.9,0.02831047]
[1733185528260,0.55,3631.3,3630.4,2.7545]
[1733185528569,0.55,3631.4,3630.9,0.02854773]
[1733185528972,0.55,3631.5,3630.9,0.02854773]
[1733185530160,0.55,3631.5,3630.8,2.90258814]
[1733185530399,0.55,3631.5,3631.0,2.75403]
[1733185530897,0.55,3631.5,3631.1,2.75397]
[1733185531160,0.55,3631.5,3631.1,2.78251773]
[1733185531304,0.7823,3631.6,3631.1,0.02854773]
[1733185531603,3.0,3632.4,3631.4,2.75375]
[1733185531805,0.957953,3632.3,3631.4,2.75375]
[1733185532308,0.7791,3632.2,3631.3,2.75382]
[1733185532677,0.55,3632.1,3631.5,2.75366]
[1733185532882,0.7791,3632.2,3631.7,2.75352]
[1733185533215,0.7791,3632.2,3631.8,2.75338]
[1733185533513,0.7791,3632.2,3631.9,2.75337]
[1733185533670,0.7791,3632.2,3631.8,0.0290385]
[1733185533671,0.7791,3632.2,3632.0,2.75323]
[1733185534070,0.7791,3632.2,3632.1,0.0290385]
[1733185534269,0.7791,3633.3,3632.1,0.0290385]
[1733185534469,0.61879795,3633.2,3632.2,2.75314]
[1733185534709,0.55520041,3633.0,3632.3,2.75307]
[1733185534936,0.55520041,3633.0,3632.8,2.75266]
[1733185535225,0.55520041,3633.0,3632.9,2.75262]
[1733185535398,0.55520041,3633.0,3632.9,2.7816585]
[1733185535790,0.7565,3633.7,3632.9,0.0290385]
[1733185536007,0.7565,3633.7,3633.4,2.75222]
[1733185536220,0.7565,3633.7,3633.2,2.75237]
[1733185536381,0.7565,3633.7,3633.5,0.02800318]
[1733185537015,0.55,3633.6,3633.2,2.75239]
[1733185537378,0.55,3633.6,3632.8,2.65657947]
[1733185537577,0.42394584,3634.8,3633.6,2.75202]
[1733185537578,0.7976,3634.0,3633.6,2.75202]
[1733185537815,0.7976,3634.0,3633.4,2.75222]
[1733185538812,0.7976,3634.0,3632.3,0.53949499]
[1733185538813,5.75194,3633.8,3632.3,0.53949499]
[1733185539030,6.50503,3633.3,3632.1,2.75316]
[1733185539326,6.50503,3633.3,3631.8,5.40998947]
[1733185539327,0.650503,3633.2,3631.8,2.65657947]
[1733185539623,0.55,3633.1,3632.1,2.75319]
[1733185540195,0.55,3633.1,3631.8,2.75345]
[1733185540507,0.55,3633.1,3631.9,2.75337]
[1733185540712,0.55,3633.1,3632.3,2.75304]
[1733185541022,0.55,3632.9,3632.3,2.75304]
[1733185542625,0.55,3632.9,3631.7,0.7598]
[1733185542918,0.55,3632.9,3632.2,2.75314]
[1733185543930,0.55,3632.9,3632.0,2.75329]
[1733185544132,0.55,3632.9,3631.9,2.75337]
[1733185544427,0.55,3632.7,3631.9,2.75337]
[1733185545290,0.55,3632.7,3632.0,2.7533]
[1733185545495,0.55,3632.7,3631.8,2.75343]
[1733185546022,0.55,3632.7,3631.9,2.77858172]
[1733185546498,0.55,3632.8,3631.9,2.77858172]
[1733185546697,0.55,3632.6,3631.9,2.77858172]
[1733185547098,0.75440082,3632.6,3631.9,0.02524172]
[1733185547287,0.55,3632.4,3631.9,0.02524172]
[1733185547625,0.55,3632.4,3632.0,0.02527405]
[1733185547835,0.75439674,3632.4,3632.0,0.02527405]
[1733185548135,0.55,3632.2,3631.4,3.02875]
[1733185548421,0.55,3632.2,3631.5,2.75366]
[1733185548633,0.55,3632.2,3631.5,2.7790526]
[1733185548797,0.55,3632.2,3631.5,2.69489654]
[1733185549186,0.7544101,3632.4,3631.5,2.69489654]
[1733185549499,0.55,3632.2,3631.5,0.0253926]
[1733185549821,0.55,3632.2,3631.8,2.75345]
[1733185550029,0.55,3632.4,3631.8,2.75345]
[1733185550186,0.25550361,3632.3,3632.1,2.75316]
[1733185550391,0.25550361,3632.3,3631.9,0.05381958]
[1733185550392,0.7713,3632.8,3632.2,2.75311]
[1733185550614,1.00994408,3632.7,3632.3,0.02628694]
[1733185550827,0.25552417,3632.6,3632.5,2.7529]
[1733185551033,0.20443154,3633.0,3632.3,2.75306]
[1733185551188,0.7713,3633.1,3632.5,0.02628694]
[1733185551189,0.45996591,3632.9,3632.5,0.02628694]
[1733185551387,0.7713,3633.1,3632.4,2.75299]
[1733185551388,0.25553437,3632.8,3632.4,2.75299]
[1733185551640,0.20442509,3633.0,3632.5,0.02628694]
[1733185551791,0.25549397,3633.0,3632.5,0.02628694]
[1733185551990,0.20440165,3632.9,3632.3,2.75307]
[1733185552205,0.45990212,3633.4,3632.7,2.75274]
[1733185552503,0.20440815,3633.3,3632.7,2.75274]
[1733185552828,0.45991883,3633.5,3632.8,0.02592053]
[1733185553032,0.45991883,3633.4,3632.8,0.02592053]
[1733185553190,0.45991883,3633.6,3632.8,0.02592053]
[1733185553390,1.00991883,3633.5,3632.6,2.75284]
[1733185553594,1.00991883,3633.5,3632.1,3.53219]
[1733185553595,0.8216,3633.2,3632.7,0.02592053]
[1733185553814,3.30247,3633.1,3631.9,2.75335]
[1733185554026,3.30247,3633.1,3632.8,0.0257266]
[1733185554304,0.55,3633.1,3631.7,0.7643]
[1733185554535,0.55,3633.1,3631.8,0.0275287]
[1733185554841,0.55,3633.1,3632.5,2.75291]
[1733185555341,1.3481,3632.7,3632.6,0.02586127]
[1733185555716,0.55,3632.6,3631.1,0.7668]
[1733185555904,0.7981,3632.4,3631.2,2.75384]
[1733185556106,3.30314,3632.3,3631.2,3.13050763]
[1733185559408,0.55,3631.9,3631.2,0.02460363]
[1733185559845,0.55,3631.9,3631.0,2.75404]
[1733185560013,0.55,3631.9,3631.3,0.02506684]
[1733185560214,0.55,3631.9,3631.0,2.75404]
[1733185560517,0.55,3631.9,3631.4,0.02507223]
[1733185560518,0.8324,3631.8,3631.4,0.02507223]
[1733185560711,0.8324,3631.8,3631.1,2.75398]
[1733185560712,0.55,3631.7,3631.1,2.75398]
[1733185560913,0.55,3631.7,3631.5,0.02506145]
[1733185561378,0.55,3631.7,3630.8,0.14840814]
[1733185561534,1.3831,3632.2,3631.5,2.75367]
[1733185561738,1.58745242,3632.2,3631.6,0.0252177]
[1733185561938,1.84295676,3632.2,3631.6,0.0252177]
[1733185562138,0.55,3632.0,3631.1,2.75397]
[1733185562382,0.55,3632.0,3631.7,0.0252177]
[1733185562589,0.68831,3632.0,3630.9,3.18689331]
[1733185562791,0.55,3632.1,3631.3,2.75377]
[1733185562941,0.55,3632.1,3631.4,0.02519615]
[1733185563142,0.55,3631.8,3630.8,0.14840814]
[1733185563491,2.75354,3631.7,3630.9,0.02519615]
[1733185563638,0.55,3631.8,3630.9,0.02519615]
[1733185563639,0.55,3631.5,3630.9,0.02519615]
[1733185564042,0.55,3631.5,3631.0,2.75405]
[1733185564776,0.55,3631.5,3631.1,2.77916615]
[1733185565491,0.55,3632.2,3631.3,2.75379]
[1733185565638,1.00993035,3632.2,3631.3,2.75379]
[1733185565842,1.00993035,3632.2,3631.4,0.02581561]
[1733185566139,0.55,3632.2,3631.4,0.02581561]
[1733185566794,0.75441476,3632.2,3631.4,0.02581561]
[1733185566997,1.5243407,3632.2,3631.4,0.02581561]
[1733185567180,1.06444276,3632.2,3631.4,0.02581561]
[1733185567993,1.26888007,3632.2,3631.4,0.02581561]
[1733185568194,2.75328,3632.1,3631.1,2.75396]
[1733185568399,0.55,3631.9,3631.2,0.02581561]
[1733185568601,0.55,3631.9,3630.9,2.75407]
[1733185568823,0.55,3631.9,3631.0,0.02579406]
[1733185568973,0.55,3631.9,3631.0,2.77983406]
[1733185570177,0.95567,3631.9,3631.0,2.77983406]
[1733185570522,4.16933225,3631.9,3631.0,2.77983406]
[1733185570670,0.8127,3631.8,3631.0,0.02579406]
[1733185570871,0.55,3631.5,3631.0,0.02579406]
[1733185571218,0.55,3631.5,3631.1,0.02590183]
[1733185571442,0.55,3631.5,3630.8,0.14840814]
[1733185571606,0.55,3631.5,3631.2,0.02590183]
[1733185571805,0.55,3631.5,3630.8,0.14840814]
[1733185572006,0.55,3631.5,3630.9,0.02590183]
[1733185573246,0.40567,3631.9,3630.9,0.02590183]
[1733185573247,0.7652,3631.4,3630.9,0.02590183]
[1733185573413,0.55,3631.1,3630.9,0.02590183]
[1733185573601,0.55,3630.9,3630.8,0.14840814]
[1733185574405,0.55,3631.8,3630.8,0.14840814]
[1733185574606,0.55,3631.6,3630.8,0.14840814]
[1733185575000,0.55,3631.6,3630.9,0.02590183]
[1733185575651,3.3036,3631.6,3630.9,0.02590183]
[1733185575800,0.55,3631.4,3630.9,0.02590183]
[1733185576764,0.25562508,3631.3,3630.8,0.14840814]
[1733185576941,0.55,3631.2,3630.8,0.14840814]
[1733185577276,0.55,3631.2,3630.9,0.02642456]
[1733185577484,0.55,3631.3,3630.9,2.78054456]
[1733185577776,0.55,3631.4,3630.9,2.78054456]
[1733185578483,0.20449937,3631.8,3631.1,2.75392]
[1733185578777,0.7598,3631.9,3631.2,2.78040002]
[1733185579142,1.12412969,3632.1,3631.2,0.38672002]
[1733185579143,0.4598707,3632.0,3631.2,0.38672002]
[1733185579485,0.7655,3632.2,3631.3,0.7687]
[1733185579486,1.48085597,3632.2,3631.3,0.7687]
[1733185579785,1.52674926,3632.6,3631.8,2.75338]
[1733185580101,0.8113,3632.6,3631.6,2.75358]
[1733185580386,0.54143046,3632.5,3631.6,2.75358]
[1733185580684,1.25687972,3632.5,3631.7,0.02603657]
[1733185580885,0.55,3632.4,3631.7,0.02603657]
[1733185581655,0.55,3632.4,3631.8,2.75338]
[1733185581854,0.55,3632.5,3631.8,2.75338]
[1733185582078,0.55,3632.5,3631.9,0.02598808]
[1733185583170,1.00997792,3632.5,3631.9,0.02598808]
[1733185583358,0.75443309,3632.5,3631.9,0.02598808]
[1733185583558,0.55,3632.5,3631.9,0.02598808]
[1733185583892,0.25556639,3632.7,3631.9,0.02598808]
[1733185583893,0.71554431,3632.7,3631.9,2.66223823]
[1733185584231,0.45997792,3632.9,3632.2,2.7531]
[1733185584401,0.25554483,3632.8,3632.2,2.7531]
[1733185584736,0.45997792,3632.8,3632.3,0.02592882]
[1733185585030,0.45997792,3632.9,3632.2,2.7531]
[1733185585189,0.45997792,3632.8,3632.4,0.02572952]
[1733185585387,1.01806639,3633.0,3632.2,2.7531]
[1733185585388,0.55,3632.6,3632.2,2.7531]
[1733185585590,0.55,3632.6,3632.3,0.02572952]
[1733185585791,1.01054212,3632.7,3632.2,2.7531]
[1733185585991,0.46098949,3632.6,3632.3,0.02572952]
[1733185586227,0.46098949,3632.6,3632.1,2.75321]
[1733185586228,0.55,3632.6,3632.1,2.75321]
[1733185586437,1.01098949,3632.6,3632.2,0.0248998]
[1733185586636,0.46098949,3632.5,3632.2,0.0248998]
[1733185587437,0.55,3632.4,3632.2,0.0248998]
[1733185587654,1.01098949,3632.6,3632.2,0.0248998]
[1733185587863,0.46098949,3632.5,3631.7,2.75351]
[1733185588009,0.55,3632.4,3632.3,0.02490519]
[1733185588350,0.7755,3632.3,3631.7,2.75351]
[1733185588649,0.7755,3632.3,3631.5,3.97311081]
[1733185588845,0.7755,3632.3,3631.8,2.75338]
[1733185589223,0.7755,3632.3,3631.9,2.75337]
[1733185589754,0.7755,3632.3,3631.5,3.97311081]
[1733185589956,0.7755,3632.3,3631.8,2.75344]
[1733185591166,0.7755,3632.3,3631.9,2.77831366]
[1733185591640,0.46084489,3632.5,3632.0,2.75329]
[1733185591964,0.55,3632.6,3631.9,0.02495366]
[1733185591965,0.55,3632.6,3632.1,3.5107]
[1733185592145,0.55,3632.7,3632.1,2.7532]
[1733185592453,1.01084489,3632.7,3632.2,0.02497521]
[1733185592616,0.55,3632.7,3632.2,0.02497521]
[1733185593330,0.55,3632.7,3632.3,2.75307]
[1733185593529,1.01166067,3632.9,3632.3,0.02497521]
[1733185593752,0.7557,3632.9,3632.5,2.75291]
[1733185594259,0.7557,3632.9,3632.6,0.02487288]
[1733185594464,0.55,3632.8,3632.6,0.02487288]
[1733185594612,0.70105842,3632.8,3632.6,0.02487288]
[1733185594811,0.70105842,3632.8,3632.2,2.75315]
[1733185595064,0.55,3632.8,3632.3,0.0247921]
[1733185595423,0.55,3632.8,3632.2,2.75315]
[1733185595623,0.55,3632.8,3632.3,0.0247921]
[1733185595823,0.55,3632.8,3632.2,2.75315]
[1733185596057,0.55,3632.8,3632.3,0.0247921]
[1733185596467,0.55,3632.8,3632.2,2.75315]
[1733185596760,0.72665314,3632.8,3632.4,0.0247275]
[1733185596963,0.72665314,3632.8,3631.8,2.75343]
[1733185597164,0.72665314,3632.8,3632.5,0.02475981]
[1733185597371,0.93153736,3632.8,3631.8,2.75343]
[1733185597664,1.44348435,3632.8,3631.9,0.02475981]
[1733185597870,1.29363232,3632.9,3632.2,2.66223823]
[1733185598023,0.7557,3632.9,3632.4,2.75294]
[1733185598223,0.7557,3632.9,3632.5,0.02481905]
[1733185599440,0.7557,3632.9,3632.5,2.77772905]
[1733185599631,0.7557,3632.9,3632.5,0.02481905]
[1733185599831,0.7557,3632.9,3632.3,2.75305]
[1733185600027,0.7557,3632.9,3632.4,2.77764211]
[1733185601337,0.55,3632.8,3632.4,0.02465211]
[1733185601540,0.955824,3632.8,3632.4,0.02465211]
[1733185601740,0.955824,3632.8,3632.1,2.75322]
[1733185601967,0.955824,3632.8,3632.5,0.0246898]
[1733185602266,0.955824,3632.8,3632.6,0.0246898]
[1733185602433,4.06217,3632.7,3632.6,0.0246898]
[1733185602638,0.55,3632.6,3631.7,3.3152309]
[1733185602837,0.55,3632.6,3631.8,0.02474904]
[1733185603582,0.55,3632.6,3631.8,2.77818904]
[1733185603751,0.55,3632.6,3631.8,0.02474904]
[1733185604076,0.55,3632.4,3631.6,2.75358]
[1733185604281,0.55,3632.4,3631.9,0.02482443]
[1733185604570,0.55,3632.4,3631.6,2.75358]
[1733185604880,0.55,3632.4,3631.7,2.7535]
[1733185605079,0.55,3632.4,3631.7,2.77836752]
[1733185605797,0.55,3632.4,3632.0,2.75329]
[1733185605936,0.55,3632.4,3631.8,2.75343]
[1733185606136,0.55,3632.4,3632.1,0.02489983]
[1733185606341,0.55,3632.4,3631.9,2.75333]
[1733185606576,0.55,3632.4,3631.7,0.54406057]
[1733185606577,0.55,3632.4,3632.2,0.02489445]
[1733185606883,0.20497471,3632.7,3632.3,0.0250237]
[1733185607084,0.20497471,3632.8,3632.3,0.0250237]
[1733185607245,0.7758,3632.9,3632.2,2.75309]
[1733185607574,0.7758,3632.9,3632.3,0.0250237]
[1733185608149,0.55,3632.8,3632.3,0.0250237]
[1733185608546,0.55,3632.8,3632.2,2.75309]
[1733185608741,0.55,3632.8,3632.4,0.02498061]
[1733185608964,1.11192883,3632.8,3631.8,2.66223823]
[1733185609164,0.20520395,3632.7,3632.5,0.02498061]
[1733185609377,4.31103504,3632.6,3631.7,2.75352]
[1733185609579,4.10584,3632.6,3631.7,2.75352]
[1733185609884,0.55,3632.4,3631.7,2.75352]
[1733185610377,0.55,3632.5,3631.7,2.75352]
[1733185610774,0.55,3632.3,3631.7,2.75352]
[1733185611148,1.213584,3632.6,3631.7,2.75352]
[1733185611149,0.55,3632.4,3631.7,2.75352]
[1733185611393,0.55,3632.5,3631.8,0.02497522]
[1733185611744,0.803,3632.6,3632.1,2.75322]
[1733185611987,0.803,3632.6,3631.9,3.03119952]
[1733185612145,0.20530126,3632.5,3631.7,2.75351]
[1733185612345,3.81250345,3632.6,3632.0,0.02497522]
[1733185612656,0.20531696,3632.5,3632.1,0.02500754]
[1733185612858,3.55586,3632.6,3631.6,3.54669]
[1733185613055,0.75529889,3632.5,3632.2,0.02500754]
[1733185613301,0.55,3632.2,3631.3,3.29407874]
[1733185613579,0.55,3632.0,3631.3,3.29407874]
[1733185613767,0.55,3632.0,3631.4,0.02501292]
[1733185613967,0.55,3632.1,3631.4,0.02501292]
[1733185614171,0.55,3632.3,3631.1,3.21080153]
[1733185614369,0.7997,3632.0,3631.5,0.0250991]
[1733185614556,0.55,3631.9,3631.0,2.75403]
[1733185614756,0.55,3631.9,3631.6,0.0250991]
[1733185614981,0.55,3631.9,3630.8,0.70038722]
[1733185614982,3.30338,3631.9,3630.8,0.70038722]
[1733185615213,4.02093727,3631.8,3631.7,0.02520684]
[1733185615359,1.3659,3631.5,3630.8,0.14840814]
[1733185615558,0.55,3631.3,3630.8,0.14840814]
[1733185615976,0.75488582,3631.4,3630.9,0.02521222]
[1733185616182,0.55,3631.4,3630.9,0.02521222]
[1733185616775,0.8159,3631.5,3630.9,0.02521222]
[1733185617663,1.32756868,3631.5,3630.9,0.02521222]
[1733185617868,0.20466613,3631.4,3630.9,0.02521222]
[1733185618180,0.20466581,3631.3,3630.9,0.02521222]
[1733185618524,0.20466581,3631.4,3630.9,0.02521222]
[1733185618964,2.13292282,3631.5,3630.9,0.02521222]
[1733185619360,0.80535414,3631.5,3630.9,0.02521222]
[1733185619602,0.8064,3631.0,3630.9,0.02521222]